Cogmind - Beta 15 @@@ ROGUE MODE // 2025.10.05 @ 21:28:04 Player: SnailSD Result: Destroyed by X-57 Shotgunner with High-powered Shotgun Performance ------------- Evolutions (2) 1000 Regions Visited (4) 800 Robots Destroyed (105) 525 Value Destroyed (2399) 2399 Prototype IDs (3) 60 Alien Tech Used (0) 0 Bonus (57) 57 TOTAL SCORE: 4841 Bonus ------- High Alert Combat Kills 57 Cogmind --------- Core Integrity 0/550 Matter 271/300 Energy 100/100 System Corruption 0% Temperature Cool (0) Movement Core (350) Ox6 Location -8/Materials Parts ------- > --- POWER (1) -------- (None) > --- PROPULSION (3) --- (None) > --- UTILITY (3) ------ Large Storage Unit > --- WEAPON (4) ------- (None) > --- INVENTORY (15) --- Heavy Ion Engine Light Nuclear Core Light Treads Heat Sink Large Storage Unit Large Matter Pod (150) Improved Terrain Scanner Targeting Computer Hacking Suite Hacking Suite Hacking Suite Datajack Katana Peak State ------------ > --- POWER ------------ Light Nuclear Core > --- PROPULSION ------- Light Treads Light Treads Light Treads > --- UTILITY ---------- Large Storage Unit Light Armor Plating Hacking Suite > --- WEAPON ----------- Improved EM Shotgun Beam Rifle Autogun Improved Assault Rifle > --- INVENTORY -------- Heavy Ion Engine Light Nuclear Core Light Treads Light Treads Heat Sink Large Storage Unit Large Matter Pod Improved Terrain Scanner Targeting Computer Hacking Suite Hacking Suite Improved Assault Rifle Rocket Launcher Datajack Katana [Rating: 24] Favorites ----------- Power Light Nuclear Core Engine Light Ion Engine Power Core Light Nuclear Core Propulsion Light Treads Treads Light Treads Wheel Wheel Utility Large Storage Unit Device Heat Sink Storage Large Storage Unit Hackware Hacking Suite Protection Light Armor Plating Weapon Beam Cannon Energy Gun Improved EM Shotgun Energy Cannon Beam Cannon Ballistic Gun Autogun Launcher Rocket Launcher Build | -11 -10 -10 -9 -8 ------- Run | Yrd Mat Min Mat Mat Slots Evolved 4 | . . . 2 2 Power . | . . . . . Propulsion 1 | . . . . 1 Utility 1 | . . . . 1 Weapon 2 | . . . 2 . Parts Attached 38 | 7 6 6 15 4 Power 5 | 1 . 2 2 . Engine 3 | 1 . 1 1 . Core 2 | . . 1 1 . Reactor . | . . . . . Propulsion 9 | 2 . 3 3 1 Treads 6 | 2 . 1 2 1 Leg . | . . . . . Wheel 3 | . . 2 1 . Hover . | . . . . . Flight . | . . . . . Utility 8 | 2 3 . 2 1 Device 2 | 1 1 . . . Storage 2 | 1 1 . . . Processor . | . . . . . Hackware 1 | . . . . 1 Protection 3 | . 1 . 2 . Artifact . | . . . . . Weapon 16 | 2 3 1 8 2 Energy Gun 3 | 1 . . 2 . Energy Cannon 4 | . 2 1 1 . Ballistic Gun 8 | 1 1 . 5 1 Ballistic Cannon . | . . . . . Launcher 1 | . . . . 1 Special Weapon . | . . . . . Impact Weapon . | . . . . . Slashing Weapon . | . . . . . Piercing Weapon . | . . . . . Special Melee Weapon . | . . . . . Unidentified Prototypes 3 | . . . 3 . Parts Lost 23 | . 4 4 3 12 Power 3 | . 1 1 . 1 Propulsion 6 | . . 2 1 3 Utility 4 | . 1 . 1 2 Weapon 10 | . 2 1 1 6 Highest Loss Streak 11 | . 4 2 2 11 To Critical Strikes . | . . . . . Average Backups 13 | 4 8 14 14 13 Power 1 | . 1 1 1 2 Propulsion 1 | 3 1 1 1 1 Utility 7 | . 4 9 7 7 Weapon 2 | . . 2 3 2 Tool/Special . | . . . . . Unused Backups 30 | 1 7 3 8 11 Power 4 | . 1 1 1 1 Propulsion 9 | 1 5 1 . 2 Utility 10 | . . . 4 6 Weapon 6 | . 1 1 3 1 Tool/Special 1 | . . . . 1 Average Slot Usage (%) 95 | . 92 95 98 94 Engine 3 | . 9 . 4 . Core 6 | . . 9 6 8 Treads 16 | . 28 7 19 25 Wheel 8 | . . 19 2 . Device 6 | . 3 14 . . Storage 12 | . 14 14 11 9 Protection 5 | . 8 . 9 8 Energy Gun 5 | . 9 . 6 16 Energy Cannon 12 | . 4 27 1 . Ballistic Gun 15 | . 12 . 35 16 Peak Build Rating 24 | 9 9 11 20 24 Average Rating 12 | 6 7 10 17 22 On Entrance 8 | . 9 7 9 19 Naked Turns . | . . . . . Heaviest Build 40 | 13 27 32 40 40 Greatest Support 60 | 40 40 40 40 60 Greatest Overweight (x) 7 | 1 . 3 3 7 Average Overweight (x) . | . . . . . Largest Inventory Capacity 15 | 8 15 15 15 15 Average Capacity 13 | 7 9 15 15 15 Most Carried 15 | 7 13 15 15 15 Average Carried 13 | 4 8 14 14 13 Final Capacity 15 | 8 15 15 15 15 Final Carried 14 | 7 13 14 14 13 Class Distribution -------------------- 31% | Mutant 30% | Scavenger-Tank 28% | Scavenger-Mutant 5% | Tank Dominant Class ---------------- Mutant | -10/Materials Scavenger-Mutant | -10/Mines Scavenger-Tank | -9/Materials Scavenger-Tank | -8/Materials Resources | -11 -10 -10 -9 -8 ----------- Run | Yrd Mat Min Mat Mat Matter Collected 1885 | 276 310 73 1082 144 Remotely . | . . . . . Salvage Created 3861 | 104 502 991 1845 419 Parts 249 | 3 34 63 107 42 Haulers Intercepted 8 | . 1 . 5 2 Recyclers Shooed 1 | . . . 1 . Parts Field Recycled . | . . . . . Retrieved Matter . | . . . . . Parts Self-Destructed . | . . . . . Prevented . | . . . . . Kills | -11 -10 -10 -9 -8 ------- Run | Yrd Mat Min Mat Mat Combat Hostiles Destroyed 74 | . 13 24 29 8 Guns 49 | . 12 1 29 7 Cannons 23 | . 1 22 . . AOE 1 | . . . . 1 Classes Destroyed 13 | 2 4 1 4 2 Worker 5 | . . 3 2 . Builder 4 | . 1 1 1 1 Tunneler 6 | 1 . 4 1 . Hauler 8 | . 1 . 5 2 Recycler 4 | 1 . 1 2 . Operator 3 | . . . 2 1 Watcher 1 | . . . 1 . Swarmer 23 | . 6 10 3 4 Grunt 39 | . 7 14 18 . Duelist 1 | . . . 1 . Sentry 9 | . . . 7 2 Specialist 1 | . . . . 1 Hunter 1 | . . . . 1 Best Kill Streak 7 | 2 6 6 7 5 Combat Bots Only 6 | . 5 5 6 5 Max Kills in Single Turn 2 | 1 1 1 2 2 Gunslinging 1 | . . . 1 1 Exploded 1 | . . . . 1 Melee . | . . . . . Uniques/NPCs Destroyed . | . . . . . Combat | -11 -10 -10 -9 -8 -------- Run | Yrd Mat Min Mat Mat Hostile Shots Fired 356 | . 69 79 84 124 Missed 96 | . 12 17 19 48 Hits 260 | . 57 62 65 76 Melee 1 | . . . 1 . Projectile 259 | . 57 62 64 76 Critical Strikes 9 | . 3 1 3 2 Damage Taken 3443 | . 576 567 902 1398 Core 854 | . 85 103 116 550 Absorbed by Shields . | . . . . . Core Remaining (%) 65 | 100 . 24 71 . Volleys Fired 212 | 2 45 71 71 23 Largest 4 | 2 2 2 4 4 Hottest 208 | 60 80 120 208 147 Shots Fired 569 | 4 73 140 277 75 Gun 430 | 4 72 8 274 72 Cannon 136 | . 1 132 3 . Launcher 3 | . . . . 3 Special . | . . . . . Kinetic 353 | 2 47 8 254 42 Thermal 155 | . 1 132 4 18 Explosive 3 | . . . . 3 Electromagnetic 58 | 2 25 . 19 12 Robot Hit Streak 15 | 4 11 15 12 10 Robot Miss Streak 9 | . 4 5 9 4 Penetration Max . | . . . . . Secondary Targets 6 | . . . 4 2 Max Gunslinging Chain 1 | . . . 1 1 Shots Hit Robots 318 | 4 48 73 144 49 Core Hits 151 | 3 22 36 65 25 Critical Kills 2 | . 1 1 . . Critical Parts Destroyed 2 | . . . 2 . Critical Strikes 6 | . 3 1 2 . Meltdown 1 | . . 1 . . Destroy 3 | . 1 . 2 . Corrupt 2 | . 2 . . . Melee Attacks . | . . . . . Impact . | . . . . . Slashing . | . . . . . Piercing . | . . . . . Sneak Attacks . | . . . . . Combat Hostiles . | . . . . . Follow-up Attacks . | . . . . . Damage Inflicted 5414 | 50 645 1322 2411 986 Guns 3742 | 50 617 44 2266 765 Cannons 1327 | . 19 1252 56 . Explosions 301 | . . . 80 221 Melee . | . . . . . Ramming 44 | . 9 26 9 . Kinetic 2829 | 24 344 44 1976 441 Thermal 1565 | . 19 1252 136 158 Explosive 221 | . . . . 221 Electromagnetic 755 | 26 273 . 290 166 Impact . | . . . . . Slashing . | . . . . . Piercing . | . . . . . Highest Corruption 2 | . . . 2 . Average Corruption 1 | . . . 1 . Corruption Purged . | . . . . . Corruption Blocked . | . . . . . Effects 7 | . . . 7 . Message Errors 2 | . . . 2 . Matter Fused 1 | . . . 1 . Heat Flow Errors 4 | . . . 4 . Overload Shots . | . . . . . Overflow Damage 14 | . . 14 . . Projectiles 14 | . . 14 . . Explosions . | . . . . . Melee . | . . . . . Knockbacks . | . . . . . Impact . | . . . . . Kinetic . | . . . . . Secondary . | . . . . . Self-Inflicted Damage 98 | . . 13 85 . Shots 2 | . . . 2 . Rammed 5 | . 2 1 2 . Targets Rammed 5 | . 2 1 2 . Kicked . | . . . . . Crushed . | . . . . . Highest Temperature 505 | . 180 264 505 279 Average Temperature 93 | . 70 60 121 87 Received Heat Transfer 774 | . 237 105 378 54 Effects 9 | . . . 9 . Shutdowns 2 | . . . 2 . Energy Bleed 1 | . . . 1 . Interference 6 | . . . 6 . Siege Activations . | . . . . . Martial Activations . | . . . . . Shielding Activations . | . . . . . Robots Disrupted . | . . . . . Combat Hostiles . | . . . . . Robots Corrupted . | . . . . . Combat Hostiles . | . . . . . Parts Fried 2 | . 1 . 1 . Impact Corruptions . | . . . . . Robots Melted 1 | . . 1 . . Combat Hostiles 1 | . . 1 . . Parts Melted 9 | . . 9 . . Heat Transferred 3295 | . 37 2590 261 407 Parts Sabotaged . | . . . . . Parts Stolen . | . . . . . Parts Stripped . | . . . . . Power Chain Reactions 2 | . . . 2 . Alert | -11 -10 -10 -9 -8 ------- Run | Yrd Mat Min Mat Mat Maximum Alert Level 2 | . . . 2 . Low Security (%) 71 | 100 100 100 9 100 Level 1 24 | . . . 80 . Level 2 3 | . . . 10 . Level 3 . | . . . . . Level 4 . | . . . . . Level 5 . | . . . . . High Security . | . . . . . Max Security . | . . . . . Peak Influence 489 | 10 100 180 489 167 Initial 120 | . . 16 68 120 Average 134 | . 42 52 312 94 Influence Increases 2112 | 10 351 575 920 256 Destroy 0b10 Robot/C 1480 | . 260 480 580 160 Destroy 0b10 Robot/NC 155 | 10 10 45 70 20 Destroy Leader 308 | . 52 50 152 54 Successful Hack 46 | . 12 . 26 8 Disable Machine 45 | . . . 45 . Destroy Structure 33 | . 2 . 17 14 Lose Combat Pursuer 45 | . 15 . 30 . Influence Decreases 2070 | 10 309 440 811 500 Entered New Map 301 | . . 26 109 166 Time Decay 1389 | 10 269 374 522 214 Lost Part 230 | . 40 40 30 120 Purge Threat 150 | . . . 150 . Squads Dispatched 9 | . 2 . 4 3 Investigation 5 | . 1 . 3 1 Extermination . | . . . . . Reinforcement 4 | . 1 . 1 2 Assault . | . . . . . Garrison . | . . . . . Intercept . | . . . . . Searches Triggered . | . . . . . Construction Impeded . | . . . . . Haulers Reinforced . | . . . . . Active Scanning Responses . | . . . . . Cargo Convoy Interrupts . | . . . . . Stealth | -11 -10 -10 -9 -8 --------- Run | Yrd Mat Min Mat Mat Distress Signals 4 | . 2 1 1 . Communications Jammed . | . . . . . Distress Signals . | . . . . . Times Spotted 107 | . 23 24 47 13 Peak Tracking Total 6 | . 6 3 6 4 Tactical Retreats 2 | . 1 . 1 . Traps | -11 -10 -10 -9 -8 ------- Run | Yrd Mat Min Mat Mat Traps Triggered 6 | . 1 . 5 . Indirectly . | . . . . . Trap Hack Attempts . | . . . . . Triggered . | . . . . . Disarmed . | . . . . . Reprogrammed . | . . . . . Reused . | . . . . . Traps Extracted . | . . . . . Installed . | . . . . . Triggered . | . . . . . Machines | -11 -10 -10 -9 -8 ---------- Run | Yrd Mat Min Mat Mat Machines Disabled 3 | . . . 3 . Max in Single Turn 1 | . . . 1 . Machines Repaired . | . . . . . Machines Dismantled . | . . . . . Machines Sabotaged . | . . . . . Overloaded Fab Kills . | . . . . . Hacking | -11 -10 -10 -9 -8 --------- Run | Yrd Mat Min Mat Mat Machines Accessed 9 | . 2 1 4 2 Terminals 7 | . 2 . 3 2 Fabricators . | . . . . . Repair Stations . | . . . . . Recycling Units . | . . . . . Scanalyzers 1 | . . . 1 . Garrison Access . | . . . . . Total Hacks 22 | . 5 1 12 4 Successful 16 | . 3 1 11 1 Failed 5 | . 1 . 1 3 Catastrophic 1 | . . . . 1 Database Lockouts 1 | . 1 . . . Manual 19 | . 11 . 4 4 Terminals 15 | . 5 . 6 4 Fabricators . | . . . . . Repair Stations . | . . . . . Recycling Units . | . . . . . Scanalyzers 6 | . . . 6 . Garrison Access . | . . . . . Terminal Hacks 7 | . 1 1 4 1 Robot Analysis 1 | . 1 . . . Open Door 1 | . . 1 . . Level Access Points 1 | . . . . 1 Alert Level 1 | . . . 1 . Unreport Threat 1 | . . . 1 . Hauler Manifests 2 | . . . 2 . Fabricator Hacks . | . . . . . Repair Station Hacks . | . . . . . Recycling Unit Hacks . | . . . . . Scanalyzer 6 | . . . 6 . Insert Component 3 | . . . 3 . Analyze 3 | . . . 3 . Garrison Access Hacks . | . . . . . Unauthorized Hacks 3 | . 2 . 1 . Terminals 3 | . 2 . 1 . Operators 3 | . 2 . 1 . Fabricators . | . . . . . Repair Stations . | . . . . . Recycling Units . | . . . . . Scanalyzers . | . . . . . Garrison Access . | . . . . . Data Cores Recovered 2 | . . . 1 1 Used . | . . . . . Hacking Detections 9 | . 3 . 4 2 Full Trace Events 2 | . . . 1 1 Feedback Events . | . . . . . Feedback Blocked . | . . . . . Robot Schematics Acquired . | . . . . . Robots Built . | . . . . . Authchips . | . . . . . Time . | . . . . . Total Robot Build Rating . | . . . . . Part Schematics Acquired 2 | . . . 2 . Parts Built . | . . . . . Authchips . | . . . . . Time . | . . . . . Total Part Build Rating . | . . . . . Parts Repaired . | . . . . . Time . | . . . . . Parts Recycled . | . . . . . Recycled Matter . | . . . . . Retrieved Matter . | . . . . . Retrieved Components . | . . . . . Parts Scanalyzed 3 | . . . 3 . Part Schematics Acquired 2 | . . . 2 . Parts Damaged . | . . . . . Bothacking | -11 -10 -10 -9 -8 ------------ Run | Yrd Mat Min Mat Mat Used RIF Installer . | . . . . . Robots Hacked . | . . . . . Non-combat . | . . . . . Combat . | . . . . . Robot Hacks Applied . | . . . . . Relay Couplers Released . | . . . . . Fabnet Peak Effective % . | . . . . . Robots Rewired . | . . . . . Allies Hacked . | . . . . . Hacks Repelled . | . . . . . Allies | -11 -10 -10 -9 -8 -------- Run | Yrd Mat Min Mat Mat Total Allies . | . . . . . Largest Group . | . . . . . Highest-Rated Group . | . . . . . Highest-Rated Ally . | . . . . . Total Orders . | . . . . . Ally Attacks . | . . . . . Total Damage . | . . . . . Kills . | . . . . . Allies Corrupted . | . . . . . Allies Melted . | . . . . . Intel | -11 -10 -10 -9 -8 ------- Run | Yrd Mat Min Mat Mat Active Infowar (turns) 111 | 55 56 . . . Terrain 111 | 55 56 . . . Robot Analysis Total 1 | . 1 . . . Derelict Logs Recovered 2 | . . 2 . . Drone Launches . | . . . . . Drone Recoveries . | . . . . . Exploration | -11 -10 -10 -9 -8 ------------- Run | Yrd Mat Min Mat Mat Turns Passed 4625 | 118 842 1769 1440 456 Spaces Moved 2234 | 61 424 782 754 213 Core 10 | 4 . . . 6 Treads 1552 | 57 424 220 644 207 Legs . | . . . . . Wheels 672 | . . 562 110 . Hover . | . . . . . Flight . | . . . . . Fastest Speed 50 | 50 160 95 95 160 Average Speed 142 | 154 160 118 151 165 Slowest Speed 400 | 160 160 240 240 400 Overloaded Moves . | . . . . . Propulsion Burnouts . | . . . . . Robots Hopped . | . . . . . Potential Cave-ins . | . . . . . Cave-ins Triggered . | . . . . . Exploration Rate (%) 52 | 4 64 97 73 25 Regions Visited 4 Branch Regions 1 Pre-discovered Areas 1 | . . 1 . . Known Exits Taken . | . . . . . Unknown Exits Taken 4 | 1 1 1 1 . Scrap Searched 2 | . . 2 . . Spaces Dug . | . . . . . Terrain Destroyed 22 | . . . 8 14 Melee . | . . . . . Projectile . | . . . . . AOE 22 | . . . 8 14 Terrain Rammed . | . . . . . Walls Destroyed . | . . . . . Machines Disabled . | . . . . . Actions | -11 -10 -10 -9 -8 --------- Run | Yrd Mat Min Mat Mat Total 3267 | 78 518 1489 918 264 Wait 693 | . 20 616 38 19 Move 2230 | 60 423 781 753 213 Hop . | . . . . . Pick Up 47 | 8 12 8 15 4 Fast Attach 25 | 7 5 2 11 . Attach 12 | . . 4 4 4 Detach 3 | . 2 1 . . Swap 6 | . 1 1 4 . Drop 34 | 1 8 4 20 1 Fire 212 | 2 45 71 71 23 Melee . | . . . . . Ram 1 | . . 1 . . Kick . | . . . . . Crush 4 | . 2 . 2 . Escape Stasis . | . . . . . Rewire . | . . . . . Trap . | . . . . . Miscellaneous . | . . . . . Route ------- -11/Scrapyard -10/Materials (discovered 3 exits: *Mat / *Min x2) -10/Mines (discovered 2 exits: *Mat x2) -9/Materials (discovered 3 exits: *Mat x2 / [*Min]) -8/Materials (discovered 3 exits: *Fac x3) History --------- Turn | Location | Event 11 | -11/Scrapyard | Discovered new exit (range 15) 119 | -11/Scrapyard | Entered Materials 214 | -10/Materials | Discovered new exit (range 10) 310 | -10/Materials | Build established: Mutant 318 | -10/Materials | Central database locked down 341 | -10/Materials | Discovered new exit (range 15) 530 | -10/Materials | Discovered new exit (range 16) 765 | -10/Materials | Lost 4 parts (1p1u2w) 961 | -10/Materials | Entered Mines 1027 | -10/Mines | Found a damaged Exp. Sensor Array with a note attached 1030 | -10/Mines | Found Prototype Device 1219 | -10/Mines | Discovered new exit (range 3) 1222 | -10/Mines | Received a Rocket Launcher from a helpful Derelict 1471 | -10/Mines | Found the Drone Emporium 1576 | -10/Mines | Excavation squad dispatched 1576 | -10/Mines | A large section of the Mines collapsed 1703 | -10/Mines | Build established: Scavenger-Mutant 1826 | -10/Mines | Excavation squad dispatched 2076 | -10/Mines | Excavation squad dispatched 2333 | -10/Mines | Core integrity fell below 50% 2389 | -10/Mines | Learned Materials stockpile data 2475 | -10/Mines | Learned Materials machine intel 2476 | -10/Mines | Learned location of Storage (-9) 2689 | -10/Mines | Discovered new exit (range 5) 2730 | -10/Mines | Entered Materials 2730 | -9/Materials | Evolved 2 slots: Weapon x2 2732 | -9/Materials | Loaded intel: 48 machine locations 3057 | -9/Materials | Discovered new exit (range 16) 3123 | -9/Materials | Build established: Scavenger-Tank 3199 | -9/Materials | Discovered new exit (range 8) 4032 | -9/Materials | Discovered new exit (range 4) 4170 | -9/Materials | Entered another Materials area 4170 | -8/Materials | Evolved 2 slots: Propulsion x1, Utility x1 4356 | -8/Materials | Identified exit to Factory 4612 | -8/Materials | Core integrity fell below 50% 4621 | -8/Materials | Core integrity fell below 20% 4626 | -8/Materials | Destroyed by X-57 Shotgunner with High-powered Shotgun Last Messages --------------- 04584_ H-61 Shepherd calls for reinforcements. 04584_ ALERT: Hostile activity reported, dispatching reinforcements to area. 04585_ The unstable cave ceiling collapses. 04586_ Lgt. Nuclear Core destroyed. 04590_ Penetrated by Slug. 04592_ Rocket Launcher destroyed. 04592_ Lgt. Armor Plating destroyed. 04596_ Lgt. Treads destroyed. 04603_ Penetrated by Slug. 04603_ Imp. EM Shotgun destroyed. 04603_ Lgt. Treads destroyed. 04603_ Critical hit (Blast). 04603_ Knocked back. 04605_ Imp. Assault Rifle destroyed. 04615_ Penetrated by Slug. 04615_ Knocked back. 04622_ Hacking Suite destroyed. 04622_ Critical hit (Blast). 04622_ Knocked back. Map ----- +----------------------------------------------------+ | #????????# # #????????????????????? | | #????????# = ] # #????????????????????? | | ?????????# + +????????????????????? | | #????????# # #????????????????????? | | #????????# """ """ # ######????????????????????? | | #????????# """ """ # #?????????????????????????? | | #????????# """ """ # #?????????????????????????? | | #????????########### #?????????????????????????? | | #?????????????????# #?????????????????????????? | | #?????????????????# ##??##????????????????????? | | #?????????????????# #"##;#????????????????????? | | ##?????????????????# #????????????????????? | | ???????????????????# %% % #????????????????????? | | ???????????????????# %#????????????????????? | | ???????????????????###### #????????????????????? | | ???????????????????????#" #????????????????????? | | ???????????????????????#" #????????????????????? | | #####??????????????????## % ##########???????????? | | ! #?????????????????## % # #???????????? | | #????????????????## !#???????????? | | """ #???????????????##! """ #???????????? | | """ #???????????????#! % =H """"??????????????? | | """ #???????????????#! [%x """"??????????????? | | #???????????????#! *=[ """"??????????????? | | #???????????????#! < """ ????????????? | | = #???????????????##! @ #???????????? | | #####????????????????### # #???????????? | | ???????????????????????###############???????????? | | ?????????????????????????????????????????????????? | | ?????????????????????????????????????????????????? | | ?????????????????????????????????????????????????? | | ?????????????????????????????????????????????????? | | ?????????????????????????????????????????????????? | | ?????????????????????????????????????????????????? | | ?????????????????????????????????????????????????? | | | | | | | | | | | | | | | | | | | | | | | | | | | | | | | +----------------------------------------------------+ Best States ------------- Heat Dissipation 38 Energy Generation 14 Energy Capacity 250 Matter Stores 300 Matter Capacity 300 Sight Range 16 Terrain Scan Range 16 Terrain Scan Density 10 Armor Coverage 150 Evasion (%) 41 Recoil Reduction 3 Offensive Hacking 10 Item Schematics ----------------- Hacking Suite | -9/Materials | Scanalyzed Lrg. Storage Unit | -9/Materials | Scanalyzed Robot Schematics ------------------ None Fabricated ------------ Nothing Repaired ---------- Nothing Alien Tech Used ----------------- None Achievements -------------- None Challenges ------------ None Game ------ Seed SiegeGravjetLeg Manual? 0 Play Time 00:32:10 Cumulative 30.2 hours Start 2025.10.05 @ 20:55:37 End 2025.10.05 @ 21:28:04 Sessions 1 Manual Loads 0 Difficulty Rogue Special Mode None Game No. 53 Rogue 53 Adventurer 0 Explorer 0 Win Type - Total 0 Types 0/0/0/0/0/0/0/0/0/0 Lore% 32 Gallery% 31 Achievement% 28 Wizard Run 0 Options --------- Layout 1 ASCII 0 Keyboard 0 Movement Numpad Keybinds 0 Fullscreen 1 Font 24/Smallcaps Map View 50x35 Zoom Use 0% Tactical HUD 1 Map Filters NONE Filters NONE Steam 1 RUN: 9932dc06-0c41-4033-a2f8-9a53f0765ace